[Event "V Copa Marcel Duchamp 2022"]
[Site "Montevideo"]
[Date "2022.02.16"]
[Round "6.34"]
[White "Avedisian, Alexander"]
[Black "Shih Ferreira, Yin Chieh"]
[Result "1-0"]
[ECO "A05"]
[WhiteElo "1875"]
[BlackElo "1463"]
[Annotator "NA"]
[PlyCount "81"]
[EventDate "2022.02.12"]
[EventCountry "URU"]
[SourceTitle "playchess.com"]
[Source "ChessBase"]
[SourceQuality "1"]
[TimeControl "5400+30"]

1. Nf3 Nf6 2. g3 {[%emt 0:00:43]} d5 {[%emt 0:00:48]} 3. Bg2 {[%emt 0:00:12]} e6 {[%emt 0:00:28]} 4. O-O {[%emt 0:00:14]} Be7 {[%emt 0:00:07]} 5. d3 {[%emt 0:00:08]} O-O {[%emt 0:00:11]} 6. Nbd2 {[%emt 0:00:05]} Nbd7 {[%emt 0:00:34]} 7. e4 {[%emt 0:00:11]} c6 {[%emt 0:08:24]} 8. Re1 {[%emt 0:00:32]} h6 {[%emt 0:03:49]} 9. e5 {[%emt 0:00:09]} Nh7 {[%emt 0:00:16]} 10. Nf1 Re8 {[%emt 0:16:45]} 11. h4 {[%emt 0:04:03]} f6 {[%emt 0:00:29]} (11... b5 $14 {is superior.}) 12. exf6 {[%emt 0:00:38]} (12. Ne3 $16) 12... Ndxf6 {[%emt 0:00:06]} 13. N1h2 {[%emt 0:02:22]} Bd6 {[%emt 0:01:07] [#]} 14. Ne5 {[%emt 0:02:31]} ({White should play} 14. d4 $1 $16) 14... Bxe5 {[%emt 0:05:06]} 15. Rxe5 {[%emt 0:00:10]} Nd7 {[%emt 0:00:15]} (15... Nf8 $1 $11) 16. Re1 {[%emt 0:04:50]} Nhf6 {[%emt 0:07:29]} 17. Ng4 {[%emt 0:01:27]} Kh7 {[%emt 0:09:27]} ({Better is} 17... e5 $14) 18. Ne5 {[%emt 0:02:13]} Nxe5 19. Rxe5 $11 {[%emt 0:02:21]} Nd7 {[%emt 0:02:22]} 20. Rh5 {[%emt 0:10:46]} (20. Re3 $16) 20... Nf6 {[%emt 0:10:20]} ({Black should play} 20... e5 $1 $15 21. Qe2 Qe7) 21. Bg5 {[%emt 0:02:47]} Kg8 {[%emt 0:00:40]} (21... e5 $15 22. Qf3 Rf8) 22. Bxf6 {[%emt 0:01:39]} Qxf6 {[%emt 0:00:04]} 23. d4 $1 {[%emt 0:00:59]} e5 $11 {[%emt 0:01:27]} 24. dxe5 {[%emt 0:06:01]} Rxe5 {[%emt 0:00:10]} 25. Rxe5 {[%emt 0:00:38]} Qxe5 {[%emt 0:08:45]} 26. Qe1 Qxb2 27. Qe8+ {[%emt 0:03:21]} Kh7 {[%emt 0:00:39]} 28. Re1 {[%emt 0:00:13]} Qxa2 {[%emt 0:09:22]} 29. c3 {[%emt 0:02:33]} Qa3 {[%emt 0:12:09]} 30. h5 {[%emt 0:00:35]} Bd7 {[%emt 0:02:12]} 31. Qxa8 {[%emt 0:03:11]} Qxc3 {[%emt 0:00:32]} 32. Re7 {[%emt 0:00:23]} Qc1+ {[%emt 0:00:27]} 33. Kh2 {[%emt 0:00:14]} Qg5 {[%emt 0:00:06]} 34. Rxd7 {[%emt 0:00:21]} Qxh5+ {[%emt 0:01:52]} 35. Bh3 {[%emt 0:00:12]} Qf3 {[%emt 0:01:04]} 36. Qxb7 {[%emt 0:01:35]} Qxf2+ {[%emt 0:00:27]} 37. Bg2 {[%emt 0:00:10]} Qf6 {[%emt 0:00:32]} 38. Qxa7 {[%emt 0:00:41]} h5 {[%emt 0:00:26]} 39. Rf7 {[%emt 0:01:01]} Qg6 {[%emt 0:00:09]} 40. Bh3 {[%emt 0:01:14]} Qc2+ {[%emt 0:00:16]} 41. Rf2 {[%emt 0:00:34]} 1-0

[Event "V Copa Marcel Duchamp 2022"]
[Site "Montevideo"]
[Date "2022.02.16"]
[Round "6.35"]
[White "Cardozo, Camila"]
[Black "Quevedo, Andreina"]
[Result "0-1"]
[ECO "A80"]
[WhiteElo "1589"]
[BlackElo "1867"]
[Annotator "NA RC"]
[PlyCount "92"]
[EventDate "2022.02.12"]
[EventCountry "URU"]
[SourceTitle "playchess.com"]
[Source "ChessBase"]
[SourceQuality "1"]
[TimeControl "5400+30"]

{[%evp 8,88,25,15,32767,23,27,14,42,15,34,-16,0,32767,6,-14,0,13,37,8,39,10,7,0,25,-16,8,0,4,14,53,18,11,7,17,-12,56,65,75,68,87,32767,32767,0,19,32767,32767,32767,32767,32767,32767,12,95,32767,32767,85,163,32767,32767,32767,32767,32767,32767,32767,32767,32767,32767,32767,32767,32767,32767,32767,32767,32767,32767,-106,32767,32767,32767,32767,32767,-392,-193]} 1. d4 {[%emt 0:01:00]} f5 {[%emt 0:00:32]} 2. Nf3 {[%emt 0:00:30]} Nf6 {[%emt 0:00:15]} 3. Bf4 {[%emt 0:01:33]} g6 {[%emt 0:01:06]} 4. e3 {[%emt 0:01:01]} Bg7 5. Bc4 {[%emt 0:02:18]} e6 {[%emt 0:04:03]} 6. a3 {[%emt 0:05:51]} O-O {[%emt 0:02:24]} 7. Ba2 {[%emt 0:01:07]} Kh8 {[%emt 0:04:05]} (7... d6 $11 {is more appropriate.}) 8. c4 {[%emt 0:01:05]} d6 {[%emt 0:04:36]} 9. h3 {[%emt 0:01:51]} (9. Nc3 $14) 9... Qe7 {[%emt 0:03:51]} 10. Nc3 {[%emt 0:02:25]} b6 {[%emt 0:03:30]} 11. O-O {[%emt 0:05:09]} Bb7 {[%emt 0:01:12]} 12. Rc1 {[%emt 0:07:56]} a6 {[%emt 0:09:24]} (12... Nbd7 $11) 13. b4 {[%emt 0:12:28]} Nbd7 {[%emt 0:03:17]} 14. d5 {[%emt 0:09:30]} e5 {[%emt 0:02:01]} 15. Bh2 {[%emt 0:01:32]} h6 {[%emt 0:10:12]} 16. Na4 {[%emt 0:03:50]} (16. Qe2 $142) 16... c5 {[%emt 0:27:25]} 17. dxc6 {[%emt 0:08:15]} Bxc6 {[%emt 0:00:09]} 18. Nc3 {[%emt 0:01:33]} g5 {[%emt 0:05:03]} ({Black should play} 18... Rfc8 $11) 19. Nd5 {[%emt 0:04:29]} (19. Bb1 $5 {[%cal Rb1f5]}) 19... Nxd5 {[%emt 0:00:09]} 20. cxd5 {[%emt 0:00:06]} Bb5 {[%emt 0:00:11]} 21. Re1 {[%emt 0:01:38]} g4 {[%emt 0:03:03]} (21... Nf6 $11) 22. hxg4 {[%emt 0:05:05]} fxg4 {[%emt 0:00:06]} 23. Nd2 $1 {[%emt 0:01:14]} Nf6 {[%emt 0:04:35]} 24. e4 Qf7 {[%emt 0:02:01]} 25. Nc4 {[%emt 0:07:43] [#]} (25. Bg3 $1 $14) 25... Bxc4 {[%emt 0:02:16]} (25... Nxe4 $1 $15 26. Qc2 (26. Rxe4 Qxf2+) 26... Bxc4 27. Bxc4 {[#]} g3 $1 28. Bxg3 Nxg3 29. fxg3 b5) 26. Bxc4 {[%emt 0:05:42]} b5 {[%emt 0:00:05]} 27. Bd3 {[%emt 0:02:07]} Rac8 {[%emt 0:02:53]} 28. Qd2 {[%emt 0:01:33]} Qd7 {[%emt 0:01:28]} 29. a4 {[%emt 0:05:41]} (29. Qe3 $14) 29... Kh7 {[%emt 0:03:09]} (29... bxa4 $11 30. Rxc8 Rxc8) 30. Qe3 {[%emt 0:00:46]} Qb7 {[%emt 0:00:21]} 31. a5 {[%emt 0:04:59]} Kg6 {[%emt 0:00:22]} ({Black should try} 31... Rxc1 $14 32. Rxc1 Rc8) 32. Qb6 {[%emt 0:01:14]} Qxb6 {[%emt 0:00:47]} 33. axb6 {[%emt 0:00:06]} Rxc1 {[%emt 0:00:33]} 34. Rxc1 {[%emt 0:00:09]} Rb8 {[%emt 0:00:06]} 35. Rc6 {[%emt 0:00:57]} Bf8 {[%emt 0:00:01]} 36. b7 {[%emt 0:02:35]} Rxb7 {[%emt 0:00:25]} 37. Rxa6 {[%emt 0:00:17]} Kf7 {[%emt 0:00:47]} 38. Ra5 {[%emt 0:00:51]} Ke7 {[%emt 0:00:54]} 39. f3 {[%emt 0:00:37]} h5 {[%emt 0:00:59]} 40. Bxb5 {[%emt 0:00:42]} Bh6 {[%emt 0:00:13]} 41. Bc6 {[%emt 0:00:52]} (41. Kf1 $11 {remains equal.}) 41... Be3+ {[%emt 0:00:34]} 42. Kf1 Rxb4 43. Ke2 {[%emt 0:00:46]} Bc5 {[%emt 0:00:38]} 44. Ra2 $19 {[%emt 0:00:26]} (44. Bxe5 $1 $11 Nxe4 45. Bxd6+ Kxd6 46. fxe4 Rxe4+ 47. Kd3 Rd4+ 48. Kc3) 44... Rb3 {[%emt 0:00:29]} (44... h4 $142 45. fxg4 Nxg4 46. Bxe5 Nxe5) 45. fxg4 {[%emt 0:00:51]} hxg4 {[%emt 0:00:18]} 46. Ra8 {[%emt 0:00:34]} g3 {[%emt 0:00:26]} 0-1

[Event "V Copa Marcel Duchamp 2022"]
[Site "Montevideo"]
[Date "2022.02.16"]
[Round "6.36"]
[White "Kulik, Nicolas"]
[Black "Martinez Alvarez, Mateo"]
[Result "0-1"]
[ECO "B96"]
[WhiteElo "1775"]
[BlackElo "1093"]
[Annotator "NA RC"]
[PlyCount "57"]
[EventDate "2022.02.12"]
[EventCountry "URU"]
[SourceTitle "playchess.com"]
[Source "ChessBase"]
[SourceQuality "1"]
[TimeControl "5400+30"]

1. e4 {[%emt 0:00:02]} c5 {[%emt 0:01:28]} 2. Nf3 {[%emt 0:00:05]} d6 {[%emt 0:00:22]} 3. d4 {[%emt 0:00:04]} cxd4 {[%emt 0:00:17]} 4. Nxd4 {[%emt 0:00:05]} Nf6 {[%emt 0:00:15]} 5. Nc3 {[%emt 0:00:03]} a6 {[%emt 0:00:12]} 6. Bg5 {[%emt 0:00:07]} e6 {[%emt 0:00:18]} 7. f4 {[%emt 0:00:04]} h6 {[%emt 0:00:39]} 8. Bh4 {[%emt 0:00:40]} Nbd7 {[%emt 0:00:31]} 9. Qf3 {[%emt 0:02:40]} e5 {[%emt 0:01:13]} 10. Bxf6 {[%emt 0:04:32]} Nxf6 {[%emt 0:02:25]} 11. Nde2 {[%emt 0:02:35]} Be7 {[%emt 0:16:12]} 12. f5 {[%emt 0:03:18]} Qa5 {[%emt 0:02:23]} 13. O-O-O {[%emt 0:04:55]} b5 {[%emt 0:00:17]} 14. Kb1 {[%emt 0:00:37]} Bb7 {[%emt 0:01:03]} 15. a3 {[%emt 0:04:33]} Rc8 {[%emt 0:02:36]} 16. Ng3 {[%emt 0:06:24]} O-O 17. Nh5 {[%emt 0:11:23]} Nxh5 {[%emt 0:07:30]} 18. Qxh5 {[%emt 0:00:04]} Rxc3 {[%emt 0:00:30]} 19. bxc3 {[%emt 0:00:02]} Bxe4 {[%emt 0:01:27]} 20. Qg4 {[%emt 0:03:06]} d5 {[%emt 0:00:35]} 21. f6 {[%emt 0:00:42]} Bxf6 {[%emt 0:00:30]} 22. Bd3 {[%emt 0:00:28]} Bxd3 {[%emt 0:02:46]} 23. cxd3 {[%emt 0:01:40]} Qxc3 24. Qb4 Rc8 {[%emt 0:04:02]} 25. Qxc3 {[%emt 0:04:22]} Rxc3 26. Kb2 {[%emt 0:02:48]} e4 {[%emt 0:00:17]} 27. dxe4 {[%emt 0:00:56]} dxe4 {[%emt 0:01:13]} 28. Rd2 {[%emt 0:01:55]} Rd3+ {[%emt 0:00:22]} 29. Kc2 {[%emt 0:00:07]} 0-1

[Event "V Copa Marcel Duchamp 2022"]
[Site "Montevideo"]
[Date "2022.02.17"]
[Round "7.35"]
[White "Pinero, Ismael"]
[Black "Elena, Eduardo"]
[Result "0-1"]
[ECO "B56"]
[WhiteElo "1906"]
[BlackElo "1712"]
[Annotator "ChessBase"]
[PlyCount "38"]
[EventDate "2022.02.12"]
[EventCountry "URU"]
[SourceTitle "playchess.com"]
[Source "ChessBase"]
[SourceQuality "1"]
[TimeControl "5400+30"]

1. e4 c5 {[%emt 0:01:02]} 2. Nf3 {[%emt 0:05:22]} Nc6 {[%emt 0:00:05]} 3. d4 {[%emt 0:00:10]} cxd4 {[%emt 0:00:04]} 4. Nxd4 {[%emt 0:00:02]} Nf6 {[%emt 0:00:07]} 5. Nc3 {[%emt 0:00:05]} d6 {[%emt 0:00:03]} 6. f3 {[%emt 0:00:29]} e5 {[%emt 0:00:30]} 7. Nb3 {[%emt 0:00:00]} Be6 {[%emt 0:00:12]} 8. Be3 {[%emt 0:00:00]} Be7 {[%emt 0:00:23]} 9. Qd2 {[%emt 0:00:00]} O-O {[%emt 0:00:07]} 10. O-O-O {[%emt 0:00:00]} a5 {[%emt 0:00:05]} 11. Bb5 {[%emt 0:00:00]} Nb4 {[%emt 0:00:08]} 12. Kb1 {[%emt 0:02:15]} d5 {[%emt 0:03:09]} 13. exd5 {[%emt 0:02:06]} Nbxd5 {[%emt 0:00:45]} 14. Nxd5 {[%emt 0:00:25]} Nxd5 {[%emt 0:00:09]} 15. Qe2 {[%emt 0:00:17]} Qc7 {[%emt 0:00:49]} 16. Bd2 {[%emt 0:10:23]} Rfc8 {[%emt 0:04:24]} 17. Bd3 {[%emt 0:12:24]} a4 {[%emt 0:01:49]} 18. Na1 {[%emt 0:02:13]} a3 {[%emt 0:02:27]} 19. b3 {[%emt 0:02:15]} Nc3+ {[%emt 0:00:20]} 0-1

[Event "V Copa Marcel Duchamp 2022"]
[Site "Montevideo"]
[Date "2022.02.17"]
[Round "7.36"]
[White "Perez Selios, Luis"]
[Black "Pena Canapa, Alfredo"]
[Result "1-0"]
[ECO "A45"]
[WhiteElo "1429"]
[BlackElo "1841"]
[Annotator "NA RC"]
[PlyCount "143"]
[EventDate "2022.02.12"]
[EventCountry "URU"]
[SourceTitle "playchess.com"]
[Source "ChessBase"]
[SourceQuality "1"]
[TimeControl "5400+30"]

1. d4 {[%emt 0:00:04]} Nf6 {[%emt 0:00:12]} 2. Bf4 {[%emt 0:00:26]} d5 {[%emt 0:00:08]} 3. e3 {[%emt 0:00:15]} c5 {[%emt 0:00:08]} 4. c3 {[%emt 0:00:30]} Nc6 {[%emt 0:00:13]} 5. Nd2 {[%emt 0:00:17]} Qb6 {[%emt 0:00:10]} 6. Qc2 {[%emt 0:02:23]} g6 {[%emt 0:02:32]} 7. Ngf3 {[%emt 0:00:18]} Bf5 {[%emt 0:00:22]} 8. dxc5 {[%emt 0:01:54]} Qxc5 {[%emt 0:00:30]} 9. Bd3 {[%emt 0:00:26]} Bxd3 {[%emt 0:01:24]} 10. Qxd3 {[%emt 0:00:11]} Bg7 {[%emt 0:00:42]} 11. O-O {[%emt 0:01:00]} O-O 12. Rad1 Rfd8 {[%emt 0:01:42]} 13. Bc7 {[%emt 0:01:59]} Rd7 {[%emt 0:00:40]} 14. Nb3 {[%emt 0:00:13]} Qc4 {[%emt 0:00:34]} 15. Qxc4 {[%emt 0:01:22]} dxc4 {[%emt 0:00:05]} 16. Rxd7 {[%emt 0:00:11]} Nxd7 {[%emt 0:00:15]} 17. Na5 {[%emt 0:00:30]} Nxa5 {[%emt 0:00:45]} 18. Bxa5 {[%emt 0:00:10]} b6 {[%emt 0:00:44]} 19. Bb4 {[%emt 0:00:09]} Bf6 {[%emt 0:01:31]} (19... Kf8 $11) 20. a4 {[%emt 0:01:29]} Rc8 {[%emt 0:01:29]} 21. Rd1 {[%emt 0:05:45]} Nc5 {[%emt 0:00:40]} 22. Bxc5 {[%emt 0:00:30]} Rxc5 {[%emt 0:00:08]} 23. Nd2 {[%emt 0:06:52]} a6 {[%emt 0:29:09]} (23... Ra5 $142) 24. Kf1 {[%emt 0:07:22]} Be5 25. Ke2 {[%emt 0:01:24]} f5 {[%emt 0:07:38]} 26. g3 {[%emt 0:05:01]} Bd6 {[%emt 0:04:05]} 27. e4 {[%emt 0:03:21]} Kf7 {[%emt 0:01:18]} 28. f4 {[%emt 0:00:37]} Bc7 {[%emt 0:11:35]} 29. Nf3 {[%emt 0:06:10]} Ke8 {[%emt 0:05:22]} 30. Ng5 {[%emt 0:07:07]} fxe4 {[%emt 0:01:12]} 31. Nxe4 {[%emt 0:01:06]} ({White should play} 31. Ne6 $14 Rc6 32. Nxc7+ Rxc7 33. Ke3) 31... Ra5 {[%emt 0:00:07]} 32. Ra1 {[%emt 0:00:14]} b5 {[%emt 0:01:17]} 33. Nd2 {[%emt 0:08:37]} Bb6 {[%emt 0:00:38]} 34. Kf3 {[%emt 0:02:59]} Kf7 {[%emt 0:02:10]} 35. Ke4 {[%emt 0:01:22]} Ke6 {[%emt 0:03:24]} 36. g4 {[%emt 0:00:52]} Kd6 {[%emt 0:00:36]} 37. h4 {[%emt 0:03:38]} Bf2 {[%emt 0:05:26]} 38. h5 {[%emt 0:01:45]} gxh5 {[%emt 0:00:37]} 39. gxh5 {[%emt 0:00:23]} Ke6 {[%emt 0:00:06] [#]} 40. Nf3 $1 {[%emt 0:03:07]} Kf6 {[%emt 0:00:47]} 41. Ne5 {[%emt 0:00:19]} Bh4 {[%emt 0:01:30]} 42. Nc6 {[%emt 0:00:27]} Rxa4 {[%emt 0:00:06]} 43. Rxa4 {[%emt 0:00:03]} bxa4 {[%emt 0:00:10]} 44. Ne5 {[%emt 0:00:10]} Kg7 {[%emt 0:00:27]} 45. Kf5 {[%emt 0:00:23]} Bf6 $2 {[%emt 0:01:41]} (45... Kh6 $11 {and Black has nothing to worry.}) 46. Nxc4 {[%emt 0:00:51]} Kh6 $2 {[%emt 0:00:52] [#]} (46... Kf7 47. Ne5+ Ke8) 47. Kg4 $2 {[%emt 0:00:21]} (47. Ne5 $1 $18 {[%cal Re5g4] is the precise move to win.} Kg7 48. c4) 47... e6 {[%emt 0:00:51]} 48. Ne5 {[%emt 0:01:30]} Be7 {[%emt 0:01:07]} 49. Nf7+ $1 {[%emt 0:00:37]} Kg7 {[%emt 0:00:22]} 50. Ng5 {[%emt 0:00:29]} a3 {[%emt 0:00:25]} 51. bxa3 {[%emt 0:00:58]} ({Wrong is} 51. Nxe6+ $2 Kf6 52. bxa3 Kxe6 $19) 51... Bxa3 {[%emt 0:00:07]} 52. Nxe6+ {[%emt 0:00:41]} Kf7 {[%emt 0:00:30]} 53. f5 {[%emt 0:00:19]} Bb2 $2 {[%emt 0:00:38]} (53... a5 $11 {and Black is okay.}) 54. Nc7 $2 {[%emt 0:01:21]} ({White has to play} 54. Ng5+ $16 Kg8 55. Ne4) 54... a5 {[%emt 0:00:28]} 55. Nb5 {[%emt 0:00:14]} a4 {[%emt 0:01:39]} 56. c4 {[%emt 0:00:47]} Bf6 $2 {[%emt 0:02:27]} (56... a3 $19 57. Nxa3 Bxa3) 57. c5 {[%emt 0:00:33]} Be5 {[%emt 0:02:49]} 58. Kg5 $11 {[%emt 0:01:52]} Kg7 {[%emt 0:00:13]} (58... h6+ $11 59. Kxh6 Kf6) 59. c6 {[%emt 0:01:43]} h6+ {[%emt 0:00:12]} 60. Kg4 {[%emt 0:00:48]} Kf7 $16 {[%emt 0:00:14]} 61. Kf3 {[%emt 0:02:17]} Ke7 {[%emt 0:01:16]} 62. Ke4 {[%emt 0:00:17]} Bb8 {[%emt 0:00:28]} 63. c7 {[%emt 0:03:55]} Bxc7 {[%emt 0:00:09]} 64. Nxc7 {[%emt 0:00:02]} Kf7 {[%emt 0:06:23]} 65. Nd5 {[%emt 0:00:47]} a3 {[%emt 0:00:14]} 66. Nb4 {[%emt 0:00:29]} Kf6 {[%emt 0:00:14]} 67. Kf4 {[%emt 0:00:25]} Kf7 {[%emt 0:00:06]} 68. Ke5 {[%emt 0:00:07]} Ke7 {[%emt 0:00:07]} 69. f6+ {[%emt 0:00:12]} Kf7 {[%emt 0:00:03]} 70. Kf5 {[%emt 0:00:17]} Kf8 {[%emt 0:00:00]} 71. Kg6 {[%emt 0:00:22]} Kg8 {[%emt 0:00:28]} 72. f7+ {[%emt 0:00:30]} 1-0

[Event "V Copa Marcel Duchamp 2022"]
[Site "Montevideo"]
[Date "2022.02.18"]
[Round "8.13"]
[White "Castro, Cesar"]
[Black "Menna Barreto, Felipe Kubiaki"]
[Result "*"]
[ECO "B30"]
[WhiteElo "2097"]
[BlackElo "2351"]
[Annotator "RC"]
[PlyCount "125"]
[EventDate "2022.02.12"]
[EventCountry "URU"]
[SourceTitle "playchess.com"]
[Source "ChessBase"]
[SourceQuality "1"]
[TimeControl "5400+30"]

1. e4 {[%emt 0:00:02]} c5 {[%emt 0:00:06]} 2. Nf3 {[%emt 0:00:07]} Nc6 {[%emt 0:00:11]} 3. Nc3 {[%emt 0:00:12]} e5 {[%emt 0:02:16]} 4. Bc4 {[%emt 0:00:34]} g6 {[%emt 0:01:04]} 5. d3 {[%emt 0:01:07]} h6 {[%emt 0:00:08]} 6. Be3 {[%emt 0:01:13]} d6 {[%emt 0:00:16]} 7. h3 {[%emt 0:02:19]} Bg7 {[%emt 0:02:00]} 8. Nd5 {[%emt 0:02:18]} Nge7 {[%emt 0:00:37]} 9. Qd2 {[%emt 0:05:31]} f5 {[%emt 0:02:08]} 10. Qe2 {[%emt 0:07:00]} Nxd5 {[%emt 0:09:49]} 11. Bxd5 {[%emt 0:01:13]} Qf6 {[%emt 0:02:25]} 12. c3 {[%emt 0:08:01]} Ne7 {[%emt 0:11:32]} 13. Bb3 {[%emt 0:01:41]} f4 {[%emt 0:04:14]} 14. Bd2 {[%emt 0:00:12]} Be6 {[%emt 0:01:06]} 15. d4 {[%emt 0:05:26]} O-O {[%emt 0:01:56]} 16. dxe5 {[%emt 0:01:28]} dxe5 {[%emt 0:00:11]} 17. Qb5 {[%emt 0:03:14]} b6 {[%emt 0:04:19]} 18. O-O-O {[%emt 0:01:51]} Rfd8 {[%emt 0:03:19]} 19. Kb1 {[%emt 0:02:19]} Bxb3 {[%emt 0:08:25]} 20. Qxb3+ {[%emt 0:00:27]} Qf7 {[%emt 0:01:01]} 21. Qxf7+ {[%emt 0:00:41]} Kxf7 {[%emt 0:00:02]} 22. Bc1 {[%emt 0:00:20]} Ke6 {[%emt 0:01:49]} 23. Kc2 {[%emt 0:00:17]} c4 {[%emt 0:03:06]} 24. Rd2 {[%emt 0:02:39]} Rxd2+ {[%emt 0:04:38]} 25. Nxd2 {[%emt 0:00:18]} b5 {[%emt 0:01:26]} 26. a4 {[%emt 0:00:30]} a6 {[%emt 0:00:34]} 27. axb5 {[%emt 0:07:38]} axb5 {[%emt 0:00:03]} 28. Nb1 {[%emt 0:00:07]} Bf8 {[%emt 0:04:22]} 29. Rd1 {[%emt 0:04:44]} Nc6 {[%emt 0:01:04]} 30. Rd5 {[%emt 0:11:00]} Rb8 {[%emt 0:01:59]} 31. g3 {[%emt 0:04:47]} Bd6 {[%emt 0:01:31]} 32. Na3 {[%emt 0:01:02]} Bxa3 {[%emt 0:02:48]} 33. bxa3 {[%emt 0:00:01]} g5 {[%emt 0:03:27]} 34. Rc5 {[%emt 0:00:29]} Kd6 {[%emt 0:03:47]} 35. Rd5+ {[%emt 0:00:02]} Kc7 {[%emt 0:03:04]} 36. Rd1 {[%emt 0:07:30]} fxg3 {[%emt 0:01:04]} 37. fxg3 {[%emt 0:00:02]} Rf8 {[%emt 0:00:11]} 38. Re1 {[%emt 0:00:53]} Rf2+ {[%emt 0:00:22]} 39. Kd1 {[%emt 0:00:41]} Rh2 {[%emt 0:01:59]} 40. Be3 {[%emt 0:01:27]} Rxh3 {[%emt 0:00:37]} 41. Bf2 {[%emt 0:00:24]} h5 {[%emt 0:02:04]} 42. Ke2 {[%emt 0:00:58]} h4 {[%emt 0:00:47]} 43. Kf3 {[%emt 0:00:03]} hxg3 {[%emt 0:01:44]} 44. Bxg3 {[%emt 0:00:02]} Rh8 {[%emt 0:01:07]} 45. Kg4 {[%emt 0:00:09]} Rd8 {[%emt 0:01:27]} 46. Rb1 {[%emt 0:03:38]} Kb6 {[%emt 0:04:48]} 47. a4 {[%emt 0:00:13]} b4 {[%emt 0:00:19]} 48. cxb4 {[%emt 0:00:20]} c3 {[%emt 0:00:20]} 49. Rc1 {[%emt 0:01:03]} Rd3 {[%emt 0:03:23]} 50. b5 {[%emt 0:00:07]} Nb4 {[%emt 0:00:30]} 51. Bxe5 {[%emt 0:00:37]} c2 {[%emt 0:00:16]} 52. Kxg5 {[%emt 0:01:26]} Ka5 {[%emt 0:01:51]} 53. Ra1 {[%emt 0:00:57]} Na2 {[%emt 0:01:24]} 54. Bf4 {[%emt 0:00:46]} Nc3 {[%emt 0:00:31]} 55. e5 {[%emt 0:02:20]} Ne2 {[%emt 0:00:54]} 56. Rc1 {[%emt 0:02:40]} Nxc1 {[%emt 0:00:30]} 57. Bxc1 {[%emt 0:00:01]} Rd1 {[%emt 0:00:12]} 58. Be3 {[%emt 0:00:26]} Re1 {[%emt 0:00:51]} 59. Bd2+ {[%emt 0:00:29]} Kxa4 {[%emt 0:00:02]} 60. Kf6 {[%emt 0:00:13]} Kxb5 {[%emt 0:00:35]} 61. e6 {[%emt 0:01:20]} Kc6 {[%emt 0:00:12]} 62. Bf4 {[%emt 0:00:02]} Rf1 {[%emt 0:00:21]} 63. e7 {[%emt 0:00:05]} *

[Event "V Copa Marcel Duchamp 2022"]
[Site "Montevideo"]
[Date "2022.02.18"]
[Round "8.16"]
[White "Curi, Gabriel"]
[Black "Meza, Anahi"]
[Result "1/2-1/2"]
[ECO "E81"]
[WhiteElo "2205"]
[BlackElo "1996"]
[Annotator "RC"]
[PlyCount "68"]
[EventDate "2022.02.12"]
[EventCountry "URU"]
[SourceTitle "playchess.com"]
[Source "ChessBase"]
[SourceQuality "1"]
[TimeControl "5400+30"]

1. d4 {[%emt 0:00:23]} Nf6 {[%emt 0:00:06]} 2. c4 {[%emt 0:00:06]} g6 {[%emt 0:00:06]} 3. f3 {[%emt 0:00:36]} Bg7 {[%emt 0:00:18]} 4. e4 {[%emt 0:00:07]} d6 {[%emt 0:00:05]} 5. Nc3 {[%emt 0:00:04]} O-O {[%emt 0:00:07]} 6. Be3 {[%emt 0:00:05]} c5 {[%emt 0:00:35]} 7. Nge2 {[%emt 0:01:16]} Nc6 {[%emt 0:00:24]} 8. Qd2 {[%emt 0:05:10]} cxd4 {[%emt 0:08:06]} 9. Nxd4 {[%emt 0:00:08]} Nxd4 {[%emt 0:00:33]} 10. Bxd4 {[%emt 0:00:07]} Bd7 {[%emt 0:00:39]} 11. Be2 {[%emt 0:00:07]} Bc6 {[%emt 0:00:08]} 12. O-O {[%emt 0:00:09]} Nd7 {[%emt 0:00:16]} 13. Bf2 {[%emt 0:00:18]} a5 {[%emt 0:00:59]} 14. b3 {[%emt 0:00:29]} Nc5 {[%emt 0:01:13]} 15. Rab1 {[%emt 0:00:07]} Be5 {[%emt 0:03:14]} 16. Rfc1 {[%emt 0:02:35]} e6 {[%emt 0:02:48]} 17. Bd1 {[%emt 0:02:23]} g5 {[%emt 0:09:00]} 18. Be3 {[%emt 0:19:32]} g4 {[%emt 0:09:01]} 19. Bg5 {[%emt 0:05:48]} f6 {[%emt 0:03:53]} 20. Bh6 {[%emt 0:02:47]} Rf7 {[%emt 0:01:14]} 21. a3 {[%emt 0:26:23]} gxf3 {[%emt 0:05:40]} 22. gxf3 {[%emt 0:00:08]} f5 {[%emt 0:06:25]} 23. b4 {[%emt 0:01:52]} axb4 {[%emt 0:01:18]} 24. axb4 {[%emt 0:00:06]} Na4 {[%emt 0:02:24]} 25. Nxa4 {[%emt 0:03:06]} Bxa4 {[%emt 0:00:02]} 26. Bxa4 {[%emt 0:00:07]} Rxa4 {[%emt 0:00:03]} 27. Kh1 {[%emt 0:09:30]} fxe4 {[%emt 0:07:37]} 28. Rg1+ {[%emt 0:06:20]} Kh8 {[%emt 0:00:02]} 29. fxe4 {[%emt 0:00:25]} Qh4 {[%emt 0:03:33]} 30. Qg2 {[%emt 0:00:34]} Ra8 {[%emt 0:00:18]} 31. Rbf1 {[%emt 0:02:12]} Qe7 {[%emt 0:11:05]} 32. Bg5 {[%emt 0:00:17]} Qc7 {[%emt 0:00:52]} 33. Rxf7 {[%emt 0:08:22]} Qxf7 {[%emt 0:00:02]} 34. Bh6 {[%emt 0:01:09]} Bd4 {[%emt 0:07:22]} 1/2-1/2

[Event "V Copa Marcel Duchamp 2022"]
[Site "Montevideo"]
[Date "2022.02.18"]
[Round "8.23"]
[White "Mateus, Martha"]
[Black "Rodriguez Farias, Eduardo"]
[Result "1-0"]
[ECO "B22"]
[WhiteElo "2019"]
[BlackElo "1931"]
[Annotator "NA"]
[PlyCount "47"]
[EventDate "2022.02.12"]
[EventCountry "URU"]
[SourceTitle "playchess.com"]
[Source "ChessBase"]
[SourceQuality "1"]
[TimeControl "5400+30"]

1. e4 {[%emt 0:00:02]} c5 {[%emt 0:09:23]} 2. c3 {[%emt 0:00:04]} g6 {[%emt 0:01:50]} 3. d4 {[%emt 0:00:03]} cxd4 {[%emt 0:00:07]} 4. cxd4 {[%emt 0:00:04]} d5 {[%emt 0:01:20]} 5. exd5 {[%emt 0:00:05]} a6 {[%emt 0:00:34]} 6. Nc3 {[%emt 0:01:15]} Bg7 {[%emt 0:00:23]} 7. Bc4 {[%emt 0:00:48]} Nf6 {[%emt 0:00:12]} 8. a4 {[%emt 0:00:33]} b6 {[%emt 0:02:38]} (8... Nbd7 $14) 9. Nge2 $14 {[%emt 0:02:47]} ({White should play} 9. Nf3 $16) 9... O-O {[%emt 0:00:22]} 10. O-O {[%emt 0:01:26]} Bb7 {[%emt 0:00:15]} 11. Nf4 {[%emt 0:02:21]} Qd6 {[%emt 0:01:14]} 12. Re1 {[%emt 0:04:06]} Nbd7 {[%emt 0:10:56]} 13. b3 {[%emt 0:16:09]} g5 {[%emt 0:35:39]} 14. Nh3 {[%emt 0:32:51]} Nxd5 {[%emt 0:02:27]} 15. Ne4 {[%emt 0:00:45]} Qc6 {[%emt 0:02:44]} 16. Nhxg5 {[%emt 0:03:35]} h6 {[%emt 0:00:49]} 17. Nf3 {[%emt 0:00:29]} Rad8 {[%emt 0:01:09]} 18. Ng3 {[%emt 0:05:39]} e5 {[%emt 0:03:21]} 19. Nf5 {[%emt 0:02:03]} e4 {[%emt 0:02:42]} 20. Bxd5 {[%emt 0:00:57]} Qf6 {[%emt 0:01:46]} 21. Bxb7 {[%emt 0:02:30]} Nc5 {[%emt 0:00:34]} 22. Nxg7 {[%emt 0:03:15]} Nxb7 {[%emt 0:02:41]} 23. Nh5 {[%emt 0:02:03]} Qh8 {[%emt 0:02:41]} 24. Rxe4 {[%emt 0:00:45]} 1-0